bitfinex/quotes_ETHUSD_20220226
["timestamp","ask_amount","ask_price","bid_price","bid_amount"]
[1645909036178,0.96387511,2832.4,2831.9,6.828847]
[1645909036179,0.07461907,2832.0,2831.9,6.828847]
[1645909036408,0.73896195,2832.1,2831.9,5.78563137]
[1645909036610,0.07461907,2832.0,2831.9,5.78563137]
[1645909037309,0.66434288,2832.1,2831.9,5.78563137]
[1645909037717,0.73896195,2832.1,2831.9,5.78563137]
[1645909037916,0.07461907,2832.0,2831.9,5.78563137]
[1645909038115,1.54786288,2832.1,2831.9,5.78563137]
[1645909038313,0.07461907,2832.0,2831.9,5.78563137]
[1645909038824,3.57461907,2832.0,2831.9,5.78563137]
[1645909039120,4.08461907,2832.0,2831.9,5.78563137]
[1645909039319,5.31249854,2832.0,2831.9,5.78563137]
[1645909039717,5.75397554,2832.0,2831.9,5.78563137]
[1645909039917,16.54397554,2832.0,2831.9,5.78563137]
[1645909040161,11.67376,2831.8,2831.4,0.5]
[1645909040353,0.66928003,2831.5,2831.4,0.5]
[1645909040955,0.07461907,2831.5,2831.4,0.5]
[1645909041359,0.07461907,2831.6,2831.4,0.5]
[1645909041560,0.66901628,2831.5,2831.4,0.5]
[1645909041758,0.74363535,2831.5,2831.1,0.25]
[1645909041959,0.88382,2831.4,2830.5,0.1411]
[1645909042159,0.88382,2831.4,2830.6,1.43618684]
[1645909042160,0.07461907,2831.3,2830.6,1.43618684]
[1645909042360,0.07461907,2831.3,2830.7,0.1411]
[1645909042561,0.07461907,2831.3,2830.8,1.43618684]
[1645909042960,0.07461907,2831.3,2830.9,1.43618684]
[1645909043160,0.07461907,2831.3,2830.4,5.81619282]
[1645909043361,0.88384,2831.1,2830.5,1.4360069]
[1645909043561,0.07461907,2831.0,2830.5,1.4360069]
[1645909046333,0.07461907,2831.0,2830.6,1.05036287]
[1645909046537,0.07461907,2831.0,2830.7,1.4360069]
[1645909046937,0.07461907,2830.9,2830.7,4.9360069]
[1645909047135,0.5,2831.3,2830.8,12.0011069]
[1645909047338,0.07463379,2831.2,2830.9,1.4360069]
[1645909047534,0.07463379,2831.1,2831.0,3.5]
[1645909047762,0.66901628,2831.8,2831.0,4.9360069]
[1645909047962,0.66901628,2831.8,2831.1,1.43443581]
[1645909048164,0.75985132,2831.9,2831.1,1.43443581]
[1645909048359,0.74365007,2831.8,2831.1,1.43443581]
[1645909048865,0.88357,2832.0,2831.2,3.8529]
[1645909048866,0.07463379,2831.7,2831.2,3.8529]
[1645909049170,0.07463379,2831.6,2831.3,1.78733581]
[1645909049360,0.07463379,2831.5,2831.4,4.93443581]
[1645909050161,0.07463379,2831.5,2831.4,11.99803581]
[1645909050359,0.07462332,2831.5,2831.4,11.99803581]
[1645909050559,0.66901628,2832.2,2831.4,11.99803581]
[1645909050761,0.07462254,2832.1,2831.5,1.43443581]
[1645909050961,0.07462254,2832.1,2831.5,4.93443581]
[1645909051432,0.07462254,2832.0,2831.9,1.25431703]
[1645909051634,0.07462254,2832.0,2831.9,1.12888533]
[1645909051841,0.66901628,2832.3,2831.5,3.5]
[1645909052136,1.55247628,2832.3,2831.6,1.43626038]
[1645909052339,0.07462254,2832.2,2831.6,1.43626038]
[1645909053339,0.07462254,2832.2,2831.4,7.0636]
[1645909053538,0.66901628,2832.1,2831.4,7.0636]
[1645909054137,0.74363882,2832.1,2831.4,7.0636]
[1645909054341,0.07462254,2832.0,2831.4,7.0636]
[1645909054538,0.66901628,2832.1,2831.4,7.0636]
[1645909054539,0.07462254,2831.9,2831.4,7.0636]
[1645909054740,0.07462254,2831.8,2831.4,7.0636]
[1645909054940,0.07462254,2831.7,2831.4,7.0636]
[1645909055160,0.07462254,2831.6,2831.4,7.0636]
[1645909055556,0.66901628,2831.8,2831.4,7.0636]
[1645909055955,0.74363882,2831.8,2831.4,7.0636]
[1645909056155,0.07462254,2831.7,2831.4,7.0636]
[1645909056453,0.66901628,2831.7,2831.4,7.0636]
[1645909057056,0.74363882,2831.7,2831.4,7.0636]
[1645909057656,0.07462254,2831.6,2831.4,7.0636]
[1645909057862,0.07462254,2831.5,2831.4,7.0636]
[1645909058259,0.66901628,2831.8,2831.4,7.0636]
[1645909058663,0.74363882,2831.8,2831.4,7.0636]
[1645909058909,0.07462254,2831.7,2831.4,7.0636]
[1645909059109,0.07462254,2831.6,2831.4,7.0636]
[1645909059309,0.66901628,2831.8,2831.4,7.0636]
[1645909059310,0.07462254,2831.5,2831.4,7.0636]
[1645909059713,0.74363882,2832.0,2831.4,10.5636]
[1645909059911,0.07462254,2831.5,2831.4,12.0003211]
[1645909060109,0.07462254,2832.0,2831.4,12.00025605]
[1645909060311,0.07462484,2831.9,2831.8,1.04903942]
[1645909060512,0.07462484,2832.0,2831.8,1.04903942]
[1645909060709,0.88346,2832.4,2831.8,1.04903942]
[1645909060710,0.07462484,2831.9,2831.8,1.04903942]
[1645909060908,0.75983767,2832.3,2831.8,1.04903942]
[1645909061112,0.74364112,2832.2,2831.6,3.5]
[1645909061311,0.74364112,2832.2,2831.5,3.5]
[1645909061512,0.0746235,2832.1,2831.6,1.43672739]
[1645909061711,0.75129767,2832.4,2831.6,1.43672739]
[1645909061911,1.05129767,2832.4,2831.6,1.43672739]
[1645909062121,0.88353,2832.2,2831.4,8.28335281]
[1645909062664,0.88353,2832.2,2831.4,7.0636]
[1645909063059,1.77590338,2832.2,2831.4,7.0636]
[1645909063257,0.88353,2832.2,2831.4,7.0636]
[1645909063461,0.89237338,2832.1,2831.4,7.0636]
[1645909063660,0.88367,2831.9,2831.4,7.0636]
[1645909064062,1.39374,2831.8,2831.4,7.0636]
[1645909065161,0.88381,2831.6,2831.4,7.0636]
[1645909065761,0.88381,2831.6,2831.5,0.00534003]
[1645909066164,1.69381,2831.6,2831.5,0.00534003]
[1645909066408,2.07141,2831.6,2831.5,0.00534003]
[1645909066608,2.07141,2831.6,2831.4,7.0636]
[1645909066810,0.21703589,2831.5,2831.4,7.06894011]
[1645909067009,11.51703589,2831.5,2831.4,7.06894011]
[1645909067209,12.40940927,2831.5,2831.4,7.06894011]
[1645909067414,13.19237338,2831.5,2831.4,7.06894011]
[1645909067810,12.3,2831.5,2831.4,7.0636]
[1645909068613,13.19237338,2831.5,2831.4,7.0636]
[1645909069014,13.1912768,2831.5,2831.4,7.0636]
[1645909069217,13.1912768,2831.5,2830.3,0.00369302]
[1645909069218,0.2937,2831.1,2830.3,0.00369302]
[1645909069416,0.2937,2831.1,2830.0,0.00369302]
[1645909069417,0.88409,2830.8,2830.0,0.00369302]
[1645909069614,0.51,2830.7,2830.0,0.00369302]
[1645909069814,0.81,2830.7,2830.0,0.00369302]
[1645909070470,0.88413,2830.6,2830.2,0.00534186]
[1645909070669,1.39413,2830.6,2830.2,0.00534186]
[1645909070869,2.57826,2830.6,2830.2,0.00534186]
[1645909071272,0.81,2830.6,2830.2,0.00534186]
[1645909071469,0.81,2830.6,2830.0,0.00369302]
[1645909071671,0.81,2830.6,2829.9,0.5]
[1645909071872,0.81,2830.6,2830.3,0.00534179]
[1645909072072,0.81,2830.6,2830.3,0.00454179]
[1645909072273,1.694,2830.6,2830.3,0.00454179]
[1645909072685,1.694,2830.6,2830.0,0.00369302]
[1645909072874,1.694,2830.6,2829.9,0.5]
[1645909073475,2.57812,2830.6,2829.9,0.5]
[1645909073679,1.76827,2830.5,2829.9,0.5]
[1645909073920,2.27827,2830.5,2829.9,0.5]
[1645909074726,0.51,2830.5,2829.9,0.5]
[1645909076528,0.51,2830.5,2830.1,0.00534208]
[1645909077528,0.51,2830.5,2829.9,0.5]
[1645909077764,0.51,2830.5,2830.2,0.00534193]
[1645909078662,0.51,2830.5,2829.9,0.5]
[1645909078862,0.51,2830.5,2830.2,0.00534186]
[1645909079664,1.4791746,2831.1,2830.2,0.00534186]
[1645909079665,0.3,2830.9,2830.2,0.00534186]
[1645909079865,0.3,2830.9,2830.0,3.50369302]
[1645909080064,2.6,2831.1,2830.0,3.50369302]
[1645909080264,2.0,2831.1,2830.3,1.24258176]
[1645909080867,2.0,2831.1,2830.2,0.00534186]
[1645909081068,2.0,2831.1,2830.1,0.00369302]
[1645909081413,0.07465707,2831.0,2830.6,0.00534135]
[1645909081813,0.95853707,2831.0,2830.6,0.00534135]
[1645909082220,0.07465707,2830.9,2830.1,0.00369302]
[1645909082620,0.07465707,2830.9,2830.7,0.0053412]
[1645909082818,3.6,2831.1,2830.7,0.0053412]
[1645909082819,0.07465707,2831.0,2830.7,0.0053412]
[1645909083023,0.07465707,2830.9,2830.7,0.0053412]
[1645909083218,0.88398,2830.8,2830.7,0.0053412]
[1645909083419,0.95863707,2830.8,2830.1,0.00369302]
[1645909083621,0.95876707,2830.7,2830.1,0.00369302]
[1645909083823,0.58465707,2830.6,2829.9,0.5]
[1645909084020,0.07465707,2830.5,2829.9,0.5]
[1645909084421,0.58465707,2830.5,2829.9,0.5]
[1645909084625,0.30770305,2830.4,2829.9,0.5]
[1645909084821,0.58465707,2830.3,2829.9,0.5]
[1645909085020,0.07465707,2830.2,2830.1,0.00534208]
[1645909085267,0.58465707,2830.2,2830.1,0.00534208]
[1645909085674,11.67465707,2830.2,2830.1,0.00534208]
[1645909085867,0.88465707,2830.2,2829.9,0.5]
[1645909086066,0.07465707,2830.1,2829.9,0.5]
[1645909086278,0.07465707,2830.1,2830.0,0.00534215]
[1645909086474,0.58465707,2830.1,2830.0,0.00534215]
[1645909087074,0.58465707,2830.1,2829.9,0.5]
[1645909087272,0.07465707,2830.0,2829.9,0.5]
[1645909087472,0.58465707,2830.0,2829.9,0.5053423]
[1645909087874,0.58465707,2830.0,2829.9,0.0053423]
[1645909088075,1.76899707,2830.0,2829.9,0.0053423]
[1645909088279,1.76899707,2830.0,2829.6,0.00369302]
[1645909088280,10.79,2829.9,2829.6,0.00369302]
[1645909088475,0.88443,2829.7,2829.2,0.00369302]
[1645909088674,0.88443,2829.7,2829.4,0.02065162]
[1645909088675,3.5282512,2829.6,2829.4,0.02065162]
[1645909088932,0.30486646,2829.5,2829.4,0.02065162]
[1645909089126,11.37468952,2829.5,2829.4,0.02065162]
[1645909089327,11.67468952,2829.5,2829.4,0.02065162]
[1645909089526,11.67468952,2829.5,2829.1,1.0]
[1645909089527,1.88468952,2829.5,2829.1,1.0]
[1645909089727,0.95921952,2829.4,2829.1,1.0]
[1645909089927,0.58468952,2829.3,2829.1,1.0]
[1645909090126,0.07468952,2829.2,2829.1,1.0]
[1645909090329,0.58468952,2829.2,2829.1,1.0]
[1645909090937,0.51,2829.2,2829.1,1.0]
[1645909091932,0.81,2829.2,2829.1,1.0]
[1645909092132,0.81,2829.2,2829.1,0.85000001]
[1645909092133,0.88470153,2829.2,2829.1,0.85000001]
[1645909092765,11.67470153,2829.2,2829.1,0.85000001]
[1645909093164,12.67470153,2829.2,2829.1,0.85000001]
[1645909094164,14.67470153,2829.2,2829.1,0.85000001]
[1645909094766,23.29,2829.1,2829.0,0.00533918]
[1645909094968,24.17470153,2829.1,2829.0,0.00533918]
[1645909095165,25.17470153,2829.1,2829.0,0.00533918]
[1645909095567,3.88470153,2829.1,2828.9,0.5]
[1645909095768,3.81,2829.1,2828.9,0.50533932]
[1645909096830,3.81,2829.1,2828.9,0.5]
[1645909096831,0.81,2829.1,2828.9,0.5]
[1645909097030,0.81,2829.1,2828.9,0.5053394]
[1645909098033,0.81,2829.1,2828.9,0.5]
[1645909098231,0.81,2829.1,2828.9,0.5053394]
[1645909098632,0.81,2829.1,2828.9,0.0053394]
[1645909099232,0.81,2829.1,2828.5,0.00369302]
[1645909099533,0.81,2829.1,2828.9,0.0053394]
[1645909100373,0.81,2829.1,2828.5,1.23072788]
[1645909100570,0.81,2829.1,2828.9,0.0053394]
[1645909100770,0.88452,2829.0,2828.9,0.0053394]
[1645909100972,1.39452,2829.0,2828.9,0.0053394]
[1645909101272,1.46923284,2829.0,2828.9,0.0053394]
[1645909101478,1.46923284,2829.0,2828.3,0.00369302]
[1645909101673,2.27914,2829.0,2828.3,0.00369302]
[1645909101871,0.07471122,2828.9,2828.8,0.00533947]
[1645909102071,0.51,2828.9,2828.8,0.00533947]
[1645909102474,0.81,2828.9,2828.8,0.00533947]
[1645909102673,0.88471207,2828.9,2828.8,0.00533947]
[1645909102872,0.88467,2828.7,2828.3,0.00369302]
[1645909103073,1.39467,2828.7,2828.3,0.02136167]
[1645909103273,5.19467,2828.7,2828.3,0.01209382]
[1645909104012,5.19467,2828.7,2828.1,0.00369302]
[1645909104013,1.69467,2828.7,2828.1,0.00369302]
[1645909104208,1.69467,2828.7,2827.9,2.84709302]
[1645909104410,5.19467,2828.7,2827.9,2.84709302]
[1645909104811,5.19467,2828.7,2827.9,2.70569302]
[1645909105012,1.69467,2828.7,2827.9,2.70569302]
[1645909105212,5.19467,2828.7,2827.9,2.70569302]
[1645909105615,1.69467,2828.7,2827.9,2.70569302]
[1645909105814,0.51,2828.7,2828.0,0.3529]
[1645909106014,2.0,2829.1,2828.5,1.04120115]
[1645909106213,0.3,2829.0,2828.5,1.04120115]
[1645909106412,2.3,2829.1,2828.5,1.04120115]
[1645909106624,2.3,2829.1,2828.1,0.00369302]
[1645909107016,0.07470674,2829.0,2828.1,0.00369302]
[1645909107418,0.95920674,2829.0,2828.1,0.00369302]
[1645909107668,0.8845,2829.0,2828.1,0.00369302]
[1645909107865,0.8845,2829.0,2828.2,1.3158449]
[1645909108262,0.8845,2829.0,2828.2,0.00534053]
[1645909108666,0.07470899,2828.9,2828.2,0.00534053]
[1645909108865,0.07470899,2828.9,2828.1,0.00369302]
[1645909109065,0.07470899,2828.9,2828.2,0.00534055]
[1645909109274,0.88459,2828.7,2828.2,0.00534055]
[1645909109763,1.18459,2828.7,2828.2,0.00534055]
[1645909109970,1.18459,2828.7,2828.1,0.00369302]
[1645909109971,1.69459,2828.7,2828.1,0.00369302]
[1645909110269,3.5,2828.6,2828.2,0.00534049]
[1645909110464,1.69459,2828.7,2828.2,0.00534049]
[1645909110465,1.11,2828.7,2828.2,0.00534049]
[1645909110664,4.31,2828.7,2828.2,0.00534049]
[1645909110870,0.81,2828.7,2828.2,0.00534049]
[1645909111268,0.81,2828.7,2827.9,2.70569302]
[1645909111511,3.5,2828.6,2828.2,0.00534049]
[1645909111712,1.11,2828.7,2828.2,0.00534049]
[1645909111916,0.81,2828.7,2828.2,0.00534049]
[1645909112111,0.81,2828.7,2828.2,0.00454049]
[1645909112313,0.81,2828.7,2827.9,2.70569302]
[1645909112717,0.81,2828.7,2828.2,0.00534049]
[1645909113516,0.81,2828.7,2827.9,2.70569302]
[1645909113716,3.5,2828.6,2827.9,2.70569302]
[1645909113915,4.31,2828.7,2827.9,2.70569302]
[1645909114115,0.81,2828.7,2827.9,2.70569302]
[1645909114523,0.0747148,2828.6,2827.9,2.70569302]
[1645909114717,0.81,2828.7,2827.9,2.70569302]
[1645909114917,2.12194,2829.2,2828.0,3.8529]
[1645909114918,2.8845,2829.1,2828.0,3.8529]
[1645909115166,2.0,2829.1,2828.1,0.00369302]
[1645909115356,3.3,2829.1,2828.1,0.00369302]
[1645909115555,2.3,2829.1,2828.1,0.00369302]
[1645909115758,0.0747074,2829.0,2828.1,0.00369302]
[1645909116358,0.0747074,2829.0,2828.1,0.00903364]
[1645909117164,0.0747074,2829.0,2828.1,0.00369302]
[1645909117661,0.0747074,2829.0,2828.1,0.00903362]
[1645909118263,0.0747074,2828.9,2828.1,0.00903362]
[1645909118462,0.81,2829.4,2828.7,1.33720923]
[1645909118664,0.07470365,2829.3,2828.7,1.33720923]
[1645909118919,0.07470365,2829.3,2828.1,0.00903362]
[1645909119321,0.07470365,2829.3,2828.2,1.3529]
[1645909119521,0.07470365,2829.3,2828.3,0.00369302]
[1645909120527,0.07470365,2829.3,2828.6,1.0798376]
[1645909122675,0.74250598,2829.3,2828.3,1.22619302]
[1645909123669,0.74250598,2829.3,2828.7,1.03997061]
[1645909124069,0.66780233,2829.2,2828.7,1.03997061]
[1645909124267,0.96780233,2829.2,2828.7,1.03997061]
[1645909124469,0.07470365,2829.1,2828.3,1.22619302]
[1645909125571,0.07470365,2829.1,2828.5,1.04986434]
[1645909126411,0.07470365,2829.0,2828.5,1.04986434]
[1645909126618,0.96780233,2829.3,2828.5,1.04986434]
[1645909126619,0.07470365,2828.9,2828.5,1.04986434]
[1645909127115,0.07470365,2828.8,2828.3,1.20627334]
[1645909127319,0.07470365,2828.7,2828.3,1.20627334]
[1645909127522,0.07470365,2828.6,2828.4,0.00369302]
[1645909127718,0.96780233,2829.3,2828.3,1.20627334]
[1645909127918,0.07470659,2829.2,2828.4,0.00369302]
[1645909128118,0.07470659,2829.2,2828.4,1.40378783]
[1645909128721,0.74250892,2829.2,2828.4,1.40378783]
[1645909128919,0.74250892,2829.2,2828.4,1.34578036]
[1645909129119,0.74250892,2829.2,2828.4,1.30362299]
[1645909129320,0.74250892,2829.1,2828.4,1.24632889]
[1645909129523,0.07470659,2829.0,2828.4,1.23498307]
[1645909129725,0.07470659,2828.9,2828.4,1.23498307]
[1645909129923,0.07470659,2828.8,2828.4,1.23498307]
[1645909130180,0.07470659,2828.7,2828.4,1.23498307]
[1645909130368,0.07470659,2828.6,2828.5,1.43529072]
[1645909130573,0.66780233,2829.1,2828.5,1.43529072]
[1645909132173,0.66780233,2829.0,2828.5,1.43529072]
[1645909132374,0.07470659,2828.9,2828.5,1.43529072]
[1645909132784,0.07470659,2828.8,2828.6,3.5]
[1645909132979,0.66780233,2829.3,2828.7,1.43529072]
[1645909133176,0.66780233,2829.3,2828.8,3.8529]
[1645909133177,0.07469687,2829.2,2828.8,3.8529]
[1645909133392,0.07469687,2829.1,2828.8,3.8529]
[1645909133578,0.07469687,2829.0,2828.9,1.43835227]
[1645909133776,0.89136599,2829.6,2828.9,12.00815227]
[1645909134011,0.89136599,2829.6,2829.3,1.12131596]
[1645909134212,0.89136599,2829.6,2829.3,1.00918437]
[1645909134618,0.89136599,2829.6,2829.3,0.75918437]
[1645909136120,0.07469687,2829.5,2829.3,0.75918437]
[1645909136417,0.07469687,2829.4,2829.3,0.75918437]
[1645909136818,0.89136599,2829.7,2829.3,0.75918437]
[1645909137417,0.96606286,2829.7,2829.3,0.75918437]
[1645909137678,0.07469687,2829.6,2829.4,3.5]
[1645909137873,0.07469687,2829.5,2829.3,0.75918437]
[1645909138075,0.07469687,2829.4,2829.3,4.25918437]
[1645909138468,0.89136599,2829.8,2829.3,4.25918437]
[1645909138670,0.07469687,2829.7,2829.3,4.25918437]
[1645909138871,0.89136599,2829.9,2829.3,4.25918437]
[1645909139270,0.89136599,2829.8,2829.3,4.25918437]
[1645909139673,0.96606286,2829.8,2829.3,4.25918437]
[1645909139870,0.07469687,2829.7,2829.3,4.25918437]
[1645909140071,0.07469687,2829.6,2829.3,4.25918437]
[1645909140270,0.07469687,2829.5,2829.3,4.25918437]
[1645909140469,0.89136599,2829.9,2829.3,0.75918437]
[1645909140674,0.89136599,2829.9,2829.3,4.25918437]
[1645909141547,0.07469687,2829.8,2829.3,3.5]
[1645909141945,0.89136599,2830.0,2829.3,3.5]
[1645909142546,0.89136599,2830.1,2829.3,3.5]
[1645909142753,0.89136599,2830.1,2829.5,1.15652888]
[1645909142754,0.96606286,2830.1,2829.5,1.15652888]
[1645909143050,0.89136599,2829.9,2829.3,3.5]
[1645909143255,0.96606286,2829.9,2829.1,3.5]
[1645909143851,0.66928464,2829.7,2829.1,3.5]
[1645909144052,0.74398151,2829.7,2829.1,3.5]
[1645909144253,0.66928464,2829.3,2829.0,0.00367703]
[1645909144455,0.74398151,2829.2,2828.9,7.0698]
[1645909144654,0.07469687,2829.1,2828.9,7.0698]
[1645909144853,0.07469687,2829.0,2828.9,7.0698]
[1645909145052,0.66928464,2829.1,2828.9,7.0698]
[1645909145469,0.66928464,2829.0,2828.9,7.0698]
[1645909145672,0.89136599,2829.2,2828.9,7.0698]
[1645909146869,1.77581599,2829.2,2828.9,7.0698]
[1645909147071,0.07469687,2829.1,2828.9,7.0698]
[1645909147876,0.07469687,2829.1,2828.9,6.5698]
[1645909148277,0.96606286,2829.1,2828.9,6.5698]
[1645909148482,0.07469687,2829.0,2828.9,6.5698]
[1645909148677,0.07469687,2829.0,2828.9,6.3198]
[1645909148922,0.89136599,2829.1,2828.9,6.3198]
[1645909148923,0.96606286,2829.1,2828.9,6.3198]
[1645909149325,0.07469687,2829.0,2828.9,6.3198]
[1645909150026,0.96606286,2829.1,2828.9,6.3198]
[1645909150326,0.07469687,2829.0,2828.9,6.3198]
[1645909150926,0.96606286,2829.0,2828.9,6.3198]
[1645909151327,0.89136599,2829.0,2828.9,6.3198]
[1645909151729,0.07469687,2829.0,2828.9,6.3198]
[1645909151930,0.89279356,2829.0,2828.9,6.3198]
[1645909153371,0.96749043,2829.0,2828.9,6.3198]
[1645909153570,0.89279356,2829.0,2828.9,6.3198]
[1645909154169,0.96749043,2829.1,2828.9,6.3198]
[1645909154469,0.96749043,2829.1,2828.9,4.57601014]
[1645909154671,0.96749043,2829.0,2828.9,4.32601014]
[1645909154870,1.26749043,2829.0,2828.9,4.32601014]
[1645909155271,0.37469687,2829.0,2828.9,4.32601014]
[1645909155875,1.26749043,2829.0,2828.9,4.32601014]
[1645909156075,0.37285221,2829.0,2828.9,4.32601014]
[1645909157332,0.37285221,2829.0,2828.9,4.27601014]
[1645909160600,1.26567892,2829.0,2828.9,4.27601014]
[1645909162413,2.21394402,2829.0,2828.9,4.27601014]
[1645909163809,0.88285221,2829.0,2828.9,4.27601014]
[1645909164734,2.14693348,2829.0,2828.9,2.11492148]
[1645909165536,2.14693348,2829.0,2828.4,0.00367703]
[1645909165537,12.38478,2828.9,2828.4,0.00367703]
[1645909165739,0.89237501,2828.6,2828.1,0.00367703]
[1645909165938,4.05698271,2828.5,2827.6,0.00367703]
[1645909166138,3.1646077,2828.5,2827.6,0.00367703]
[1645909166536,5.9005167,2828.5,2827.6,0.00367703]
[1645909166745,1.77723501,2828.4,2827.6,0.00367703]
[1645909166940,0.51,2828.3,2827.6,0.00367703]
[1645909167144,2.6550265,2828.2,2827.6,0.00367703]
[1645909167339,0.51,2828.1,2827.4,10.84897703]
[1645909167538,0.81,2828.1,2827.4,7.52057703]
[1645909167783,2.58002,2828.1,2827.4,3.98287703]
[1645909167982,2.58002,2828.1,2827.6,0.00527511]
[1645909168180,2.88002,2828.1,2827.6,0.00527511]
[1645909168379,1.770091,2828.0,2827.6,0.00527511]
[1645909168581,2.51,2827.9,2827.6,0.00527511]
[1645909168780,1.77024,2827.8,2827.6,0.00527511]
[1645909168980,0.51,2827.7,2827.2,0.00367703]
[1645909169178,0.88505,2827.6,2827.1,0.5]
[1645909169384,1.39505,2827.6,2827.1,0.5]
[1645909169582,3.3,2827.9,2827.2,3.5]
[1645909169583,3.0,2827.9,2827.2,3.5]
[1645909169781,0.141658,2828.3,2827.2,3.50367703]
[1645909169982,2.0,2828.2,2827.3,1.49432902]
[1645909170184,2.0,2828.2,2827.4,3.5]
[1645909170578,2.0,2828.2,2827.3,0.00367703]
[1645909170780,2.0,2828.2,2827.3,1.49384038]
[1645909170984,2.0,2828.2,2827.4,3.5]
[1645909171181,2.3,2828.2,2827.3,0.00367703]
[1645909171635,2.3,2828.2,2827.5,1.20396087]
[1645909171835,2.3,2828.2,2827.3,1.00367703]
[1645909172038,2.3,2828.2,2827.3,0.00367703]
[1645909172836,2.3,2828.2,2827.6,0.00531965]
[1645909173638,2.3,2828.2,2827.3,0.00367703]
[1645909176307,2.3,2828.2,2827.2,3.60657703]
[1645909176508,2.3,2828.2,2827.3,1.44111856]
[1645909176708,2.3,2828.2,2827.4,3.5]
[1645909177212,2.3,2828.2,2827.3,1.79401856]
[1645909177509,2.3,2828.2,2827.7,0.00532415]
[1645909178508,2.3,2828.2,2827.4,3.5]
[1645909178922,2.3,2828.2,2827.8,0.00532393]
[1645909179731,2.3,2828.2,2827.2,3.5]
[1645909180026,2.3,2828.2,2827.9,0.00532385]
[1645909180929,2.3,2828.2,2827.2,3.5]
[1645909181134,2.3,2828.2,2827.9,0.00532378]
[1645909182029,2.3,2828.2,2827.2,3.5]
[1645909182430,2.3,2828.2,2827.9,0.00532378]
[1645909183288,2.3,2828.2,2827.3,0.00366173]
[1645909183490,2.3,2828.2,2827.9,0.00532378]
[1645909184591,0.3482578,2828.1,2827.3,0.00366173]
[1645909184799,0.3482578,2828.1,2827.9,0.00532378]
[1645909185692,0.3482578,2828.1,2827.3,0.00366173]
[1645909185893,0.3482578,2828.1,2827.9,0.00532385]
[1645909186932,0.3482578,2828.1,2827.3,0.00366173]
[1645909187134,0.3482578,2828.1,2827.9,0.00532385]
[1645909188036,0.3482578,2828.1,2827.3,0.00366173]
[1645909188435,0.3482578,2828.1,2827.9,0.00532385]
[1645909189236,0.3482578,2828.1,2827.3,0.00366173]
[1645909189636,0.3482578,2828.1,2827.9,0.00532385]
[1645909190474,0.3482578,2828.1,2827.3,0.00366173]
[1645909190873,0.3482578,2828.1,2827.9,0.00532385]
[1645909191778,0.3482578,2828.1,2827.3,0.00366173]
[1645909191978,0.3482578,2828.1,2827.9,0.00532385]
[1645909192781,1.2331078,2828.1,2827.9,0.00532385]
[1645909192982,1.2331078,2828.1,2827.3,0.00366173]
[1645909193183,1.2331078,2828.1,2827.9,0.00532385]
[1645909193584,4.7331078,2828.1,2827.9,0.00532385]
[1645909194036,4.7331078,2828.1,2827.3,0.00366173]
[1645909194238,4.01,2828.0,2827.3,0.00366173]
[1645909194446,0.88495,2827.8,2827.4,0.02129861]
[1645909195251,0.88495,2827.8,2827.3,0.00366173]
[1645909195445,3.5,2827.7,2827.2,0.00366173]
[1645909195643,0.88495,2827.8,2827.2,0.00366173]
[1645909195843,0.88495,2827.8,2827.1,0.5]
[1645909196052,4.01,2827.7,2827.1,0.5]
[1645909196245,1.7702,2827.6,2827.1,0.5]
[1645909196446,0.51,2827.5,2827.1,0.5]
[1645909196847,0.51,2827.5,2827.3,0.00532577]
[1645909197144,0.88509,2827.4,2827.3,0.00532577]
[1645909197346,1.39509,2827.4,2827.3,0.00532577]
[1645909197545,1.69509,2827.4,2827.3,0.00532577]
[1645909197789,1.69509,2827.4,2827.1,0.5]
[1645909197790,0.18158365,2827.3,2827.1,0.5]
[1645909197983,0.51,2827.2,2827.1,0.5]
[1645909198182,4.01,2827.2,2827.1,0.5]
[1645909198681,5.01,2827.2,2827.1,0.5]
[1645909199284,5.01,2827.2,2827.1,0.4985543]
[1645909200290,4.98374,2827.2,2827.1,0.4985543]
[1645909201285,0.48374,2827.2,2827.1,0.4985543]
[1645909201545,0.3482578,2827.2,2827.1,0.4985543]
[1645909201940,0.3482578,2827.2,2827.1,3.9985543]
[1645909202238,0.3482578,2827.2,2827.1,1.98874003]
[1645909202434,2.0,2828.0,2827.2,0.35503852]
[1645909202635,0.89237501,2828.2,2827.6,1.3139124]
[1645909202848,0.89237501,2828.2,2827.3,3.5]
[1645909203040,0.89237501,2828.2,2827.4,0.00366173]
[1645909203441,1.19237501,2828.2,2827.3,3.49269188]
[1645909203643,1.19237501,2828.2,2827.3,3.48090919]
[1645909203845,1.19237501,2828.2,2827.4,1.21459785]
[1645909204041,1.19237501,2828.2,2827.7,0.00532518]
[1645909204042,0.89237501,2828.1,2827.7,0.00532518]
[1645909204241,0.89237501,2828.1,2827.8,0.14824779]
[1645909204242,0.89237501,2828.0,2827.8,0.14824779]
[1645909204444,0.51,2828.0,2827.8,0.14824779]
[1645909204641,0.51,2828.0,2827.7,0.00126724]
[1645909204642,2.07745843,2827.9,2827.7,0.00126724]
[1645909204841,2.58745843,2827.9,2827.2,0.85343852]
[1645909205042,2.58745843,2827.9,2827.2,2.15488699]
[1645909205285,3.58745843,2827.9,2827.2,2.15488699]
[1645909205491,2.58745843,2827.9,2827.2,0.85343852]
[1645909205686,3.58745843,2827.9,2827.6,0.14824779]
[1645909205885,2.58745843,2827.9,2827.2,0.85343852]
[1645909206087,3.58745843,2827.9,2827.2,0.85343852]
[1645909206287,0.89241843,2827.8,2827.2,0.85343852]
[1645909206892,2.48504,2827.9,2827.3,3.5]
[1645909207092,1.49241843,2827.9,2827.3,3.5]
[1645909207296,0.89241843,2828.1,2827.6,0.14824779]
[1645909207695,0.89241843,2828.1,2827.5,1.21862343]
[1645909207894,0.89241843,2828.1,2827.3,3.5]
[1645909208495,1.19241843,2828.1,2827.3,3.5]
[1645909208694,1.19241843,2828.1,2827.6,0.00532533]
[1645909208929,0.89241843,2828.0,2827.7,0.14824779]
[1645909209123,0.89241843,2828.0,2827.6,0.00532533]
[1645909209322,0.89241843,2828.0,2827.9,0.45566604]
[1645909209725,0.88485,2828.0,2827.9,0.45566604]
[1645909210127,1.77726843,2828.0,2827.9,0.45566604]
[1645909210327,1.67726843,2828.0,2827.9,0.60391383]